[Event "European Womens-ch 2025"]
[Site "Rhodes"]
[Date "2025.04.11"]
[Round "11.21"]
[White "Antolak, Julia"]
[Black "Krasteva, Beloslava"]
[Result "0-1"]
[Annotator "ChessBase"]
[ECO "C41"]
[WhiteElo "2314"]
[BlackElo "2257"]
[PlyCount "110"]
[EventDate "2025.03.29"]
[EventType "swiss"]
[EventCountry "GRE"]
[SourceTitle "playchess.com"]
[Source "ChessBase"]
[SourceQuality "1"]
[TimeControl "40/5400+30:1800+30"]

1. e4 {[%emt 0:00:22]} d6 {[%emt 0:00:11]} 2. d4 {[%emt 0:00:32]} Nf6 {[%emt 0:00:12]} 3. Nc3 {[%emt 0:00:04]} e5 {[%emt 0:00:08]} 4. Nf3 {[%emt 0:00:05]} Nbd7 {[%emt 0:00:12]} 5. g4 {[%emt 0:00:52]} Nxg4 {[%emt 0:00:48]} 6. Rg1 {[%emt 0:00:06]} Ngf6 {[%emt 0:00:04]} 7. Bc4 {[%emt 0:00:29]} h6 {[%emt 0:00:21]} 8. Be3 {[%emt 0:00:23]} c6 {[%emt 0:00:36]} 9. a4 {[%emt 0:00:11]} Qa5 {[%emt 0:03:19]} 10. Nd2 {[%emt 0:01:00]} Qb4 {[%emt 0:02:43]} 11. Ra3 {[%emt 0:22:40]} exd4 {[%emt 0:28:39]} 12. Bxd4 {[%emt 0:00:44]} Ne5 {[%emt 0:00:36]} 13. Rb3 {[%emt 0:15:39]} Qa5 {[%emt 0:00:12]} 14. f4 {[%emt 0:00:05]} Nxc4 {[%emt 0:03:51]} 15. Nxc4 {[%emt 0:00:32]} Qh5 {[%emt 0:09:01]} 16. Bxf6 {[%emt 0:11:17]} Qxd1+ {[%emt 0:00:51]} 17. Kxd1 {[%emt 0:02:40]} gxf6 {[%emt 0:00:05]} 18. Na5 {[%emt 0:02:26]} Kd7 {[%emt 0:09:14]} 19. Ne2 {[%emt 0:05:27]} b6 {[%emt 0:04:06]} 20. Nc4 {[%emt 0:00:14]} Ba6 {[%emt 0:01:32]} 21. Ne3 {[%emt 0:00:38]} Re8 {[%emt 0:02:37]} 22. Ng4 {[%emt 0:01:47]} Bxe2+ {[%emt 0:07:13]} 23. Kxe2 {[%emt 0:00:05]} Rxe4+ {[%emt 0:00:21]} 24. Kf3 {[%emt 0:00:15]} Rxa4 {[%emt 0:00:30]} 25. Nxf6+ {[%emt 0:01:11]} Ke6 {[%emt 0:00:17]} 26. Nh5 {[%emt 0:02:45]} Be7 {[%emt 0:06:08]} 27. Rg7 {[%emt 0:02:47]} Rf8 {[%emt 0:03:42]} 28. Rh7 {[%emt 0:03:01]} Rc4 {[%emt 0:00:53]} 29. Re3+ {[%emt 0:04:42]} Kd7 {[%emt 0:00:29]} 30. Ng3 {[%emt 0:00:48]} Rxc2 {[%emt 0:02:20]} 31. Nf5 {[%emt 0:00:09]} Bd8 {[%emt 0:01:18]} 32. h4 {[%emt 0:01:35]} Rc5 {[%emt 0:06:23]} 33. Nd4 {[%emt 0:02:50]} Re8 {[%emt 0:02:43]} 34. Rxf7+ {[%emt 0:01:50]} Re7 {[%emt 0:00:26]} 35. Rexe7+ {[%emt 0:03:55]} Bxe7 {[%emt 0:00:06]} 36. Nf5 {[%emt 0:01:25]} Ke6 {[%emt 0:01:22]} 37. Nxh6 {[%emt 0:01:09]} Bxh4 {[%emt 0:02:46]} 38. Kg4 {[%emt 0:01:02]} Bf6 {[%emt 0:01:43]} 39. Rxa7 {[%emt 0:01:47]} Bxb2 {[%emt 0:00:56]} 40. f5+ {[%emt 0:00:00]} Kd5 {[%emt 0:00:00]} 41. Ng8 {[%emt 0:00:36]} Rc1 {[%emt 0:02:39]} 42. Ne7+ {[%emt 0:02:50]} Kc5 {[%emt 0:03:13]} 43. Rc7 {[%emt 0:02:15]} Kb5 {[%emt 0:02:50]} 44. Kf3 {[%emt 0:01:50]} c5 {[%emt 0:02:55]} 45. Nc8 {[%emt 0:00:59]} Be5 {[%emt 0:01:07]} 46. Ke4 {[%emt 0:02:05]} Rd1 {[%emt 0:01:55]} 47. Rb7 {[%emt 0:04:13]} Kc6 {[%emt 0:00:56]} 48. Rf7 {[%emt 0:00:15]} c4 {[%emt 0:02:06]} 49. Na7+ {[%emt 0:03:17]} Kc5 {[%emt 0:00:06]} 50. Rc7+ {[%emt 0:00:17]} Kb4 {[%emt 0:00:16]} 51. Nc6+ {[%emt 0:00:58]} Kc3 {[%emt 0:03:35]} 52. Nxe5 {[%emt 0:01:03]} Re1+ {[%emt 0:00:50]} 53. Kf4 {[%emt 0:01:12]} dxe5+ {[%emt 0:00:58]} 54. Kf3 {[%emt 0:00:06]} b5 {[%emt 0:00:45]} 55. f6 {[%emt 0:00:13]} Rf1+ {[%emt 0:00:52]} 0-1

[Event "European Womens-ch 2025"]
[Site "Rhodes"]
[Date "2025.04.11"]
[Round "11.22"]
[White "Wagner, Dinara"]
[Black "Gaboyan, Susanna"]
[Result "0-1"]
[Annotator "ChessBase"]
[ECO "D36"]
[WhiteElo "2440"]
[BlackElo "2200"]
[PlyCount "116"]
[EventDate "2025.03.29"]
[EventType "swiss"]
[EventCountry "GRE"]
[SourceTitle "playchess.com"]
[Source "ChessBase"]
[SourceQuality "1"]
[TimeControl "40/5400+30:1800+30"]

1. d4 {[%emt 1:31:00]} d5 {[%emt 0:01:30]} 2. c4 {[%emt 0:00:00]} e6 {[%emt 0:00:06]} 3. Nc3 {[%emt 0:00:00]} Nf6 {[%emt 0:00:06]} 4. cxd5 {[%emt 0:00:00]} exd5 {[%emt 0:00:05]} 5. Bg5 {[%emt 0:00:00]} Be7 {[%emt 0:00:15]} 6. e3 {[%emt 0:00:00]} O-O {[%emt 0:01:08]} 7. Bd3 {[%emt 0:00:00]} c6 {[%emt 0:00:16]} 8. Nge2 {[%emt 0:00:00]} Re8 {[%emt 0:00:24]} 9. Qc2 {[%emt 0:00:00]} Nbd7 {[%emt 0:00:20]} 10. O-O {[%emt 0:00:00]} b5 {[%emt 0:06:26]} 11. a4 {[%emt 0:00:00]} b4 {[%emt 0:03:09]} 12. Nb1 {[%emt 0:00:00]} Bb7 {[%emt 0:03:28]} 13. Nd2 {[%emt 0:00:00]} a5 {[%emt 0:05:06]} 14. Nb3 {[%emt 0:00:00]} h6 {[%emt 0:02:36]} 15. Bxf6 {[%emt 0:00:00]} Nxf6 {[%emt 0:00:56]} 16. Rfc1 {[%emt 0:00:00]} Bd6 {[%emt 0:00:57]} 17. Nc5 {[%emt 0:00:00]} Bc8 {[%emt 0:00:26]} 18. h3 {[%emt 0:00:00]} Bc7 {[%emt 0:02:00]} 19. Bf5 {[%emt 0:00:00]} Qd6 {[%emt 0:01:23]} 20. g3 {[%emt 0:00:00]} h5 {[%emt 0:07:29]} 21. h4 {[%emt 0:00:00]} Ng4 {[%emt 0:02:31]} 22. Bxc8 {[%emt 0:00:00]} Raxc8 {[%emt 0:02:24]} 23. Qf5 {[%emt 0:00:00]} g6 {[%emt 0:01:09]} 24. Qf3 {[%emt 0:00:00]} Re7 {[%emt 0:07:43]} 25. Nf4 {[%emt 0:00:00]} Rce8 {[%emt 0:02:40]} 26. Ng2 {[%emt 0:00:00]} Bb6 {[%emt 0:05:31]} 27. Rc2 {[%emt 0:00:00]} Bxc5 {[%emt 0:09:55]} 28. Rxc5 {[%emt 0:00:00]} Ne5 {[%emt 0:00:06]} 29. Qf4 {[%emt 0:02:41]} Re6 {[%emt 0:00:50]} 30. b3 {[%emt 0:03:34]} Qe7 {[%emt 0:05:56]} 31. Rc2 {[%emt 0:02:53]} Ng4 {[%emt 0:07:19]} 32. Qf3 {[%emt 0:00:37]} Nf6 {[%emt 0:04:50]} 33. Rac1 {[%emt 0:00:03]} Qb7 {[%emt 0:00:26]} 34. Nf4 {[%emt 0:00:48]} Rd6 {[%emt 0:01:54]} 35. Nd3 {[%emt 0:03:41]} Ng4 {[%emt 0:04:07]} 36. Nc5 {[%emt 0:01:03]} Qe7 {[%emt 0:00:28]} 37. Nd3 {[%emt 0:00:50]} Rf6 {[%emt 0:01:40]} 38. Qe2 {[%emt 0:00:13]} Qe4 {[%emt 0:08:07]} 39. Nf4 {[%emt 0:00:55]} Qe7 {[%emt 0:01:34]} 40. Rxc6 {[%emt 0:00:00]} Rxf4 {[%emt 0:00:00]} 41. gxf4 {[%emt 0:02:56]} Qxh4 {[%emt 0:02:22]} 42. Qf3 {[%emt 0:00:22]} Qh2+ {[%emt 0:08:01]} 43. Kf1 {[%emt 0:00:38]} Re4 {[%emt 0:07:30]} 44. f5 {[%emt 0:24:23]} gxf5 {[%emt 0:08:17]} 45. Qxf5 {[%emt 0:01:07]} Qh3+ {[%emt 0:03:06]} 46. Ke2 {[%emt 0:00:44]} Rxe3+ {[%emt 0:00:04]} 47. Kd2 {[%emt 0:02:23]} Rf3 {[%emt 0:02:54]} 48. Rc8+ {[%emt 0:01:51]} Kg7 {[%emt 0:01:04]} 49. Qg5+ {[%emt 0:01:08]} Kh7 {[%emt 0:00:02]} 50. Qg8+ {[%emt 0:00:49]} Kh6 {[%emt 0:00:03]} 51. Qh8+ {[%emt 0:00:22]} Kg5 {[%emt 0:00:16]} 52. Qd8+ {[%emt 0:00:08]} Nf6 {[%emt 0:02:26]} 53. Rg1+ {[%emt 0:01:12]} Kf5 {[%emt 0:00:16]} 54. Qe7 {[%emt 0:00:34]} Ne4+ {[%emt 0:01:28]} 55. Kd1 {[%emt 0:00:34]} Rd3+ {[%emt 0:00:13]} 56. Ke1 {[%emt 0:00:24]} Re3+ {[%emt 0:00:06]} 57. Kd1 {[%emt 0:00:03]} Nxf2+ {[%emt 0:00:05]} 58. Kc2 {[%emt 0:00:46]} Rxe7 {[%emt 0:00:05]} 0-1

[Event "European Womens-ch 2025"]
[Site "Rhodes"]
[Date "2025.04.11"]
[Round "11.23"]
[White "Atalik, Ekaterina"]
[Black "Khurtsilava, Inga"]
[Result "1/2-1/2"]
[Annotator "ChessBase"]
[ECO "E14"]
[WhiteElo "2375"]
[BlackElo "2214"]
[PlyCount "50"]
[EventDate "2025.03.29"]
[EventType "swiss"]
[EventCountry "GRE"]
[SourceTitle "playchess.com"]
[Source "ChessBase"]
[SourceQuality "1"]
[TimeControl "40/5400+30:1800+30"]

1. d4 {[%emt 0:00:03]} Nf6 {[%emt 0:00:04]} 2. Nf3 {[%emt 0:00:13]} e6 {[%emt 0:00:13]} 3. e3 {[%emt 0:01:03]} b6 {[%emt 0:00:14]} 4. Bd3 {[%emt 0:00:05]} Bb7 {[%emt 0:00:11]} 5. O-O {[%emt 0:00:16]} Be7 {[%emt 0:01:11]} 6. c4 {[%emt 0:00:22]} Ne4 {[%emt 0:04:14]} 7. Nfd2 {[%emt 0:03:44]} d5 {[%emt 0:01:37]} 8. Bxe4 {[%emt 0:03:54]} dxe4 {[%emt 0:00:06]} 9. Nc3 {[%emt 0:00:17]} f5 {[%emt 0:00:21]} 10. b3 {[%emt 0:01:07]} O-O {[%emt 0:00:35]} 11. Bb2 {[%emt 0:00:47]} Nd7 {[%emt 0:00:49]} 12. Qe2 {[%emt 0:00:53]} a6 {[%emt 0:12:18]} 13. Rfd1 {[%emt 0:00:39]} Bd6 {[%emt 0:00:22]} 14. f4 {[%emt 0:07:32]} exf3 {[%emt 0:09:12]} 15. Nxf3 {[%emt 0:00:09]} g5 {[%emt 0:00:23]} 16. e4 {[%emt 0:11:49]} g4 {[%emt 0:00:30]} 17. Ne1 {[%emt 0:00:30]} Bxh2+ {[%emt 0:33:33]} 18. Kxh2 {[%emt 0:03:27]} Qh4+ {[%emt 0:00:04]} 19. Kg1 fxe4 {[%emt 0:00:05]} 20. Nxe4 {[%emt 0:05:12]} Bxe4 {[%emt 0:11:34]} 21. Qxe4 {[%emt 0:04:31]} Qf2+ {[%emt 0:00:23]} 22. Kh1 {[%emt 0:01:42]} Qh4+ {[%emt 0:09:34]} 23. Kg1 {[%emt 0:00:05]} Qf2+ {[%emt 0:00:01]} 24. Kh1 {[%emt 0:54:10]} Nf6 25. Qxe6+ {[%emt 0:00:30]} Rf7 {[%emt 0:15:26]} 1/2-1/2

[Event "European Womens-ch 2025"]
[Site "Rhodes"]
[Date "2025.04.11"]
[Round "11.24"]
[White "Unuk, Laura"]
[Black "Rodshtein, Tereza"]
[Result "1/2-1/2"]
[Annotator "ChessBase"]
[ECO "D75"]
[WhiteElo "2301"]
[BlackElo "2171"]
[PlyCount "40"]
[EventDate "2025.03.29"]
[EventType "swiss"]
[EventCountry "GRE"]
[SourceTitle "playchess.com"]
[Source "ChessBase"]
[SourceQuality "1"]
[TimeControl "40/5400+30:1800+30"]

1. Nf3 {[%emt 0:00:16]} d5 {[%emt 0:03:24]} 2. g3 {[%emt 0:00:19]} c5 {[%emt 0:05:56]} 3. Bg2 {[%emt 0:06:03]} Nf6 {[%emt 0:00:40]} 4. O-O {[%emt 0:01:53]} g6 {[%emt 0:01:38]} 5. c4 {[%emt 0:08:39]} Bg7 {[%emt 0:03:10]} 6. d4 {[%emt 0:05:19]} cxd4 {[%emt 0:02:54]} 7. cxd5 {[%emt 0:03:02]} Nxd5 {[%emt 0:01:32]} 8. Nxd4 {[%emt 0:02:25]} O-O {[%emt 0:05:06]} 9. Nc3 {[%emt 0:04:25]} Nxc3 {[%emt 0:01:27]} 10. bxc3 {[%emt 0:00:04]} Nc6 {[%emt 0:01:06]} 11. Nxc6 {[%emt 0:21:34]} bxc6 {[%emt 0:00:09]} 12. Qxd8 {[%emt 0:00:11]} Rxd8 {[%emt 0:00:05]} 13. Bxc6 {[%emt 0:00:09]} Rb8 {[%emt 0:00:12]} 14. Bg5 {[%emt 0:12:49]} Bh3 {[%emt 0:20:14]} 15. Bxe7 {[%emt 0:07:05]} Bxf1 {[%emt 0:01:17]} 16. Bxd8 {[%emt 0:00:13]} Bxe2 {[%emt 0:00:43]} 17. Ba5 {[%emt 0:01:22]} Rb2 {[%emt 0:00:34]} 18. Be4 {[%emt 0:10:17]} Rb5 {[%emt 0:04:25]} 19. Re1 {[%emt 0:03:51]} Rxa5 {[%emt 0:01:02]} 20. Rxe2 {[%emt 0:00:06]} Bxc3 {[%emt 0:00:29]} 1/2-1/2

[Event "European Womens-ch 2025"]
[Site "Rhodes"]
[Date "2025.04.11"]
[Round "11.25"]
[White "Radeva, Viktoria"]
[Black "Dicen, Elis Denele"]
[Result "1-0"]
[Annotator "ChessBase"]
[ECO "B76"]
[WhiteElo "2297"]
[BlackElo "2129"]
[PlyCount "125"]
[EventDate "2025.03.29"]
[EventType "swiss"]
[EventCountry "GRE"]
[SourceTitle "playchess.com"]
[Source "ChessBase"]
[SourceQuality "1"]
[TimeControl "40/5400+30:1800+30"]

1. e4 {[%emt 0:00:03]} c5 {[%emt 0:00:12]} 2. Nc3 {[%emt 0:00:05]} Nc6 {[%emt 0:00:40]} 3. Nge2 {[%emt 0:00:04]} g6 {[%emt 0:02:00]} 4. d4 {[%emt 0:00:04]} cxd4 {[%emt 0:00:43]} 5. Nxd4 {[%emt 0:00:04]} Bg7 {[%emt 0:00:21]} 6. Nb3 {[%emt 0:00:12]} Nf6 {[%emt 0:00:51]} 7. Be3 {[%emt 0:00:21]} d6 {[%emt 0:01:49]} 8. f3 {[%emt 0:00:13]} O-O {[%emt 0:04:58]} 9. Qd2 {[%emt 0:00:05]} Be6 {[%emt 0:06:22]} 10. O-O-O {[%emt 0:00:29]} Ne5 {[%emt 0:07:47]} 11. Kb1 {[%emt 0:02:07]} Rc8 {[%emt 0:08:43]} 12. Be2 {[%emt 0:00:24]} Bc4 {[%emt 0:05:21]} 13. g4 {[%emt 0:11:54]} Bxe2 {[%emt 0:01:32]} 14. Qxe2 {[%emt 0:00:05]} Nc4 {[%emt 0:05:13]} 15. Bc1 {[%emt 0:00:46]} Qb6 {[%emt 0:10:14]} 16. h4 {[%emt 0:09:34]} h6 {[%emt 0:07:44]} 17. g5 {[%emt 0:04:39]} Nh5 {[%emt 0:02:26]} 18. Nd5 {[%emt 0:00:38]} Qd8 {[%emt 0:01:34]} 19. gxh6 {[%emt 0:04:55]} Bf6 {[%emt 0:02:56]} 20. Nxf6+ {[%emt 0:01:04]} exf6 {[%emt 0:00:35]} 21. Rhg1 {[%emt 0:03:23]} Qe7 {[%emt 0:00:58]} 22. Rd5 {[%emt 0:12:11]} Kh7 {[%emt 0:01:32]} 23. f4 {[%emt 0:02:31]} f5 {[%emt 0:05:54]} 24. Rd4 {[%emt 0:21:57]} b5 {[%emt 0:03:35]} 25. Qd3 {[%emt 0:00:27]} fxe4 {[%emt 0:01:57]} 26. Rxe4 {[%emt 0:00:08]} Qf6 {[%emt 0:01:04]} 27. f5 {[%emt 0:02:56]} Ne5 {[%emt 0:02:58]} 28. fxg6+ {[%emt 0:00:27]} fxg6 {[%emt 0:00:20]} 29. Qxb5 {[%emt 0:02:30]} Qf2 {[%emt 0:01:40]} 30. Rge1 {[%emt 0:04:26]} Qxc2+ {[%emt 0:00:51]} 31. Ka1 {[%emt 0:00:02]} Rc7 {[%emt 0:02:48]} 32. a3 {[%emt 0:02:23]} Rff7 {[%emt 0:05:53]} 33. Nd4 {[%emt 0:02:04]} Qd3 {[%emt 0:00:56]} 34. Rxe5 {[%emt 0:03:08]} Qxd4 {[%emt 0:00:33]} 35. Re6 {[%emt 0:01:20]} Qxh4 {[%emt 0:01:20]} 36. Bg5 {[%emt 0:02:15]} Qc4 {[%emt 0:01:00]} 37. Qe8 {[%emt 0:00:39]} Qc5 {[%emt 0:00:49]} 38. Re7 {[%emt 0:06:28]} Qd5 {[%emt 0:01:50]} 39. Rxc7 {[%emt 0:01:47]} Rxc7 {[%emt 0:00:05]} 40. Be7 {[%emt 0:00:00]} Qg8 {[%emt 0:00:00]} 41. Qxg8+ {[%emt 0:10:47]} Kxg8 {[%emt 0:01:40]} 42. Bxd6 {[%emt 0:00:01]} Rd7 {[%emt 0:03:42]} 43. Re6 {[%emt 0:04:40]} Kh7 {[%emt 0:01:12]} 44. Bc5 {[%emt 0:00:12]} Kxh6 {[%emt 0:09:43]} 45. Ra6 {[%emt 0:00:21]} Kg5 {[%emt 0:00:32]} 46. Rxa7 {[%emt 0:02:28]} Rd1+ {[%emt 0:02:29]} 47. Ka2 {[%emt 0:00:03]} Kf5 {[%emt 0:00:35]} 48. b4 {[%emt 0:02:13]} Nf6 {[%emt 0:01:14]} 49. Rf7 {[%emt 0:02:17]} Ke6 {[%emt 0:01:45]} 50. Rg7 {[%emt 0:01:13]} Kf5 {[%emt 0:00:59]} 51. a4 {[%emt 0:06:10]} Ne4 {[%emt 0:01:08]} 52. Rc7 {[%emt 0:01:12]} g5 {[%emt 0:01:38]} 53. a5 {[%emt 0:00:23]} g4 {[%emt 0:02:32]} 54. a6 {[%emt 0:00:39]} Nc3+ {[%emt 0:02:10]} 55. Kb3 {[%emt 0:00:31]} Nd5 {[%emt 0:00:35]} 56. Rg7 {[%emt 0:01:48]} Ra1 {[%emt 0:01:49]} 57. a7 {[%emt 0:00:05]} Ke6 {[%emt 0:00:28]} 58. Kc4 {[%emt 0:00:42]} Rc1+ {[%emt 0:01:18]} 59. Kb5 {[%emt 0:00:27]} Ra1 {[%emt 0:00:13]} 60. Kc6 {[%emt 0:01:25]} Ra6+ {[%emt 0:00:41]} 61. Kb7 {[%emt 0:00:28]} Ra4 {[%emt 0:00:30]} 62. a8=Q {[%emt 0:00:20]} Rxa8 {[%emt 0:00:41]} 63. Kxa8 {[%emt 0:00:05]} 1-0

[Event "European Womens-ch 2025"]
[Site "Rhodes"]
[Date "2025.04.11"]
[Round "11.26"]
[White "Velikic, Adela"]
[Black "Sieber, Fiona"]
[Result "1-0"]
[Annotator "ChessBase"]
[ECO "A17"]
[WhiteElo "2214"]
[BlackElo "2276"]
[PlyCount "79"]
[EventDate "2025.03.29"]
[EventType "swiss"]
[EventCountry "GRE"]
[SourceTitle "playchess.com"]
[Source "ChessBase"]
[SourceQuality "1"]
[TimeControl "40/5400+30:1800+30"]

1. Nf3 {[%emt 0:00:03]} Nf6 {[%emt 0:00:10]} 2. c4 {[%emt 0:00:06]} e6 {[%emt 0:00:08]} 3. Nc3 {[%emt 0:00:10]} Bb4 {[%emt 0:02:56]} 4. Qc2 {[%emt 0:00:39]} c5 {[%emt 0:04:50]} 5. a3 {[%emt 0:01:57]} Ba5 {[%emt 0:02:25]} 6. g3 {[%emt 0:12:08]} Nc6 {[%emt 0:03:34]} 7. Bg2 {[%emt 0:03:19]} O-O {[%emt 0:00:06]} 8. O-O {[%emt 0:01:20]} d6 {[%emt 0:01:01]} 9. e3 {[%emt 0:11:09]} Qe7 {[%emt 0:09:44]} 10. b3 {[%emt 0:07:33]} a6 {[%emt 0:03:09]} 11. Bb2 {[%emt 0:01:10]} Rb8 {[%emt 0:00:37]} 12. Ng5 {[%emt 0:04:59]} Re8 {[%emt 0:12:43]} 13. f4 {[%emt 0:06:29]} h6 {[%emt 0:01:07]} 14. Nge4 {[%emt 0:09:23]} Nxe4 {[%emt 0:00:25]} 15. Nxe4 {[%emt 0:00:13]} Bd7 {[%emt 0:01:04]} 16. Rad1 {[%emt 0:09:11]} b5 {[%emt 0:01:57]} 17. Ba1 {[%emt 0:00:39]} Bb6 {[%emt 0:05:41]} 18. Qc3 {[%emt 0:05:26]} f6 {[%emt 0:01:12]} 19. Qd3 {[%emt 0:04:23]} Bc7 {[%emt 0:02:24]} 20. g4 {[%emt 0:02:37]} Nd8 {[%emt 0:02:51]} 21. h4 {[%emt 0:02:44]} bxc4 {[%emt 0:07:03]} 22. bxc4 {[%emt 0:00:08]} d5 {[%emt 0:00:24]} 23. cxd5 {[%emt 0:03:32]} Bb5 {[%emt 0:01:00]} 24. Qc2 {[%emt 0:01:37]} exd5 {[%emt 0:04:36]} 25. Nc3 {[%emt 0:00:50]} d4 {[%emt 0:03:38]} 26. Nxb5 {[%emt 0:02:40]} Rxb5 {[%emt 0:00:38]} 27. exd4 {[%emt 0:00:29]} Ne6 {[%emt 0:08:33]} 28. Rde1 {[%emt 0:01:31]} cxd4 {[%emt 0:03:28]} 29. Rxe6 {[%emt 0:06:13]} Qxe6 {[%emt 0:00:13]} 30. Qxc7 {[%emt 0:00:02]} Qxg4 {[%emt 0:00:57]} 31. Bxd4 {[%emt 0:00:50]} Re2 {[%emt 0:01:15]} 32. Qd8+ {[%emt 0:01:01]} Kh7 {[%emt 0:00:44]} 33. Bf2 {[%emt 0:00:13]} Rb3 {[%emt 0:04:07]} 34. Qd5 {[%emt 0:01:39]} Rxa3 {[%emt 0:00:43]} 35. Be3 {[%emt 0:00:49]} Qxh4 {[%emt 0:04:19]} 36. Be4+ {[%emt 0:00:44]} g6 {[%emt 0:02:17]} 37. Qf7+ {[%emt 0:00:21]} Kh8 {[%emt 0:00:01]} 38. Qe8+ {[%emt 0:00:09]} Kg7 {[%emt 0:00:03]} 39. Qxg6+ {[%emt 0:00:17]} Kf8 {[%emt 0:00:08]} 40. Bc5# {[%emt 0:00:00]} 1-0

[Event "European Womens-ch 2025"]
[Site "Rhodes"]
[Date "2025.04.11"]
[Round "11.27"]
[White "Schneider, Jana"]
[Black "Nadzamova, Viktoria"]
[Result "1-0"]
[Annotator "ChessBase"]
[ECO "B30"]
[WhiteElo "2251"]
[BlackElo "2122"]
[PlyCount "41"]
[EventDate "2025.03.29"]
[EventType "swiss"]
[EventCountry "GRE"]
[SourceTitle "playchess.com"]
[Source "ChessBase"]
[SourceQuality "1"]
[TimeControl "40/5400+30:1800+30"]

1. e4 {[%emt 0:00:07]} c5 {[%emt 0:00:11]} 2. Nf3 {[%emt 0:00:08]} Nc6 {[%emt 0:00:08]} 3. Nc3 {[%emt 0:00:10]} e5 {[%emt 0:00:10]} 4. Bc4 {[%emt 0:00:20]} Be7 {[%emt 0:00:19]} 5. d3 {[%emt 0:00:32]} d6 {[%emt 0:00:41]} 6. Nd2 {[%emt 0:00:21]} Bg5 {[%emt 0:01:13]} 7. Nf1 {[%emt 0:07:38]} Bxc1 {[%emt 0:00:14]} 8. Qxc1 {[%emt 0:02:10]} Nf6 {[%emt 0:00:56]} 9. Ne3 {[%emt 0:04:06]} O-O {[%emt 0:01:58]} 10. h3 {[%emt 0:05:39]} Be6 {[%emt 0:02:10]} 11. Qd1 {[%emt 0:04:28]} a6 {[%emt 0:01:52]} 12. a4 {[%emt 0:01:14]} Rb8 {[%emt 0:00:38]} 13. O-O {[%emt 0:05:09]} Nd4 {[%emt 0:02:05]} 14. Ncd5 {[%emt 0:06:06]} b5 {[%emt 0:03:37]} 15. axb5 {[%emt 0:04:14]} axb5 {[%emt 0:00:08]} 16. Nxf6+ {[%emt 0:02:38]} Qxf6 {[%emt 0:02:25]} 17. Bxe6 {[%emt 0:02:33]} Nxe6 {[%emt 0:06:41]} 18. Ra6 {[%emt 0:02:01]} Nc7 {[%emt 0:04:40]} 19. Rc6 {[%emt 0:07:39]} Rfc8 {[%emt 0:04:07]} 20. Qg4 {[%emt 0:01:04]} g6 {[%emt 0:05:57]} 21. Qd7 {[%emt 0:02:11]} 1-0

[Event "European Womens-ch 2025"]
[Site "Rhodes"]
[Date "2025.04.11"]
[Round "11.28"]
[White "Abdinova, Narmin"]
[Black "Rudzinska, Michalina"]
[Result "0-1"]
[Annotator "ChessBase"]
[ECO "E08"]
[WhiteElo "2165"]
[BlackElo "2223"]
[PlyCount "60"]
[EventDate "2025.03.29"]
[EventType "swiss"]
[EventCountry "GRE"]
[SourceTitle "playchess.com"]
[Source "ChessBase"]
[SourceQuality "1"]
[TimeControl "40/5400+30:1800+30"]

1. d4 {[%emt 0:01:06]} d5 {[%emt 0:00:11]} 2. c4 {[%emt 0:00:25]} e6 {[%emt 0:00:08]} 3. Nf3 {[%emt 0:00:05]} Nf6 {[%emt 0:00:08]} 4. g3 {[%emt 0:00:03]} Be7 {[%emt 0:00:36]} 5. Bg2 {[%emt 0:00:11]} O-O {[%emt 0:00:12]} 6. O-O {[%emt 0:00:05]} c6 {[%emt 0:00:24]} 7. Qc2 {[%emt 0:00:25]} b6 {[%emt 0:00:39]} 8. b3 {[%emt 0:00:18]} Bb7 {[%emt 0:00:38]} 9. Rd1 {[%emt 0:03:13]} Nbd7 {[%emt 0:01:19]} 10. Nc3 {[%emt 0:00:19]} c5 {[%emt 0:07:01]} 11. cxd5 {[%emt 0:11:12]} exd5 {[%emt 0:00:32]} 12. Bb2 {[%emt 0:02:21]} Rc8 {[%emt 0:01:20]} 13. Qf5 {[%emt 0:04:53]} Re8 {[%emt 0:07:20]} 14. Rac1 {[%emt 0:05:14]} Bf8 {[%emt 0:03:42]} 15. e3 {[%emt 0:02:56]} g6 {[%emt 0:07:30]} 16. Qb1 {[%emt 0:00:51]} Bh6 {[%emt 0:03:34]} 17. Nb5 {[%emt 0:05:26]} Ne4 {[%emt 0:01:36]} 18. Ne5 {[%emt 0:07:59]} a6 {[%emt 0:12:37]} 19. Bxe4 {[%emt 0:14:56]} axb5 {[%emt 0:00:30]} 20. Nxd7 {[%emt 0:01:43]} Qxd7 {[%emt 0:01:57]} 21. dxc5 {[%emt 0:00:06]} bxc5 {[%emt 0:01:19]} 22. Bg2 {[%emt 0:00:52]} d4 {[%emt 0:03:46]} 23. exd4 {[%emt 0:16:50]} Bxg2 {[%emt 0:00:47]} 24. Kxg2 {[%emt 0:01:01]} Bxc1 {[%emt 0:00:49]} 25. Qxc1 {[%emt 0:00:10]} Qd5+ {[%emt 0:04:01]} 26. Kg1 {[%emt 0:00:27]} c4 {[%emt 0:00:49]} 27. bxc4 {[%emt 0:01:16]} Rxc4 {[%emt 0:03:52]} 28. Qd2 {[%emt 0:00:01]} Rc6 {[%emt 0:02:42]} 29. Ba3 {[%emt 0:02:48]} Rce6 {[%emt 0:00:42]} 30. Rc1 {[%emt 0:02:16]} Re2 {[%emt 0:01:10]} 0-1